Cogmind - Beta 14 *** ADVENTURER MODE // 2024.08.31 @ 22:09:58 Player: Ms. V3-11A Result: Destroyed by G-67 Veteran with Plasma Rifle Performance ------------- Evolutions (7) 3500 Regions Visited (21) 4200 Robots Destroyed (416) 2080 Value Destroyed (22709) 22709 Prototype IDs (57) 1140 Alien Tech Used (7) 1400 Bonus (7032) 7032 TOTAL SCORE: 42061 Bonus ------- High Alert Combat Kills 1667 Follower Combat Kills 1448 Forged Quantum Companion 1000 Registered with UFD 300 Met Zhirov 300 Met Warlord at Base 500 MAIN.C Attacked Warlord 500 Warlord Defense Kills 1124 Met R17 at Cetus 500 Scanned by Researcher 500 Friendly Fire -807 Cogmind --------- Core Integrity 0/1300 Matter 181/300 Energy 325/325 System Corruption 67% Temperature Cool (12) Movement Walking (260) Ox2 Location -3/Quarantine Parts ------- > --- POWER (3) -------- Reinforced Antimatter Reactor > --- PROPULSION (4) --- Flexi-carbon Leg Myomer Leg > --- UTILITY (11) ----- Huge Storage Unit Advanced Target Analyzer Graphene Brace (fused) > --- WEAPON (3) ------- Quantum Companion > --- INVENTORY (25) --- Matter Drive Flexi-carbon Leg Advanced Cryofiber Web Advanced Heat Sink Huge Storage Unit Experimental Energy Well (600) Experimental Matter Compressor (90) Experimental Matter Compressor (0) Advanced Component Analysis Suite Transdimensional Reconstructor Gamma Rifle Advanced Variable Charge Gun Compact HERF Cannon Compact Mass Driver Fusion Bomb Launcher CPS Tube (2) CPS Tube (2) Junk Cannon (0) Core Stripper Sigix Corpse Sigix Corpse Peak State ------------ > --- POWER ------------ Mini Fusion Reactor Compact Particle Reactor Quantum Reactor > --- PROPULSION ------- Flexi-carbon Leg Flexi-carbon Leg Myomer Leg Myomer Leg > --- UTILITY ---------- Advanced Heat Sink Advanced Cooling System Huge Storage Unit Advanced Signal Interpreter Advanced Melee Analysis Suite Advanced Target Analyzer Experimental Target Analyzer Phase Armor Graphene Brace Advanced Force Field > --- WEAPON ----------- Dispersion Rifle Helical Railgun Quantum Companion > --- INVENTORY -------- Matter Drive Flexi-carbon Leg Flexi-carbon Leg Myomer Leg Advanced Cryofiber Web Advanced Heat Sink Huge Storage Unit Experimental Energy Well Experimental Matter Compressor Experimental Matter Compressor Advanced Component Analysis Suite Transdimensional Reconstructor Gamma Rifle Advanced Variable Charge Gun Compact HERF Cannon Compact Mass Driver Fusion Bomb Launcher CPS Tube CPS Tube Junk Cannon Sigix Corpse Sigix Corpse [Rating: 179] Favorites ----------- Power Meta Core Engine Reinforced Deuterium Engine Power Core Meta Core Reactor Quantum Reactor Propulsion Light Treads Treads Light Treads Leg Flexi-carbon Leg Wheel Wheel Utility Huge Storage Unit Device Advanced Heat Sink Storage Huge Storage Unit Processor Advanced Signal Interpreter Hackware Makeshift Hacking Suite Protection Centrium Medium Armor Plating Artifact Phase Armor Weapon Wave Gun Energy Gun Wave Gun Energy Cannon Advanced Beam Cannon Ballistic Gun Gauss Rifle Ballistic Cannon Battle Cannon Launcher Long-range Missile Launcher Impact Weapon Core Stripper Slashing Weapon Companion Sword Build | -11 -10 -10 -8 -8 -8 -8 -6 -6 -6 -5 -5 -5 -5 -4 -4 -4 -4 -4 -3 -3 -3 ------- Run | Yrd Mat Sub Mat Sto Rec Scr Fac Ext Cet Fac Upp Upp Zhi Pro Fac Upp Upp War Pro Res Qua Slots Evolved 14 | . . . 4 . . . 4 . . 2 . . . . 2 . . . . 2 . Power 2 | . . . . . . . 1 . . . . . . . . . . . . 1 . Propulsion 2 | . . . 2 . . . . . . . . . . . . . . . . . . Utility 9 | . . . 2 . . . 2 . . 2 . . . . 2 . . . . 1 . Weapon 1 | . . . . . . . 1 . . . . . . . . . . . . . . Parts Attached 418 | . 9 10 23 10 . 8 17 37 25 51 2 9 8 8 36 1 4 8 6 52 94 Power 46 | . 1 2 1 . . . 4 2 1 10 . . . 1 6 1 . 1 . 4 12 Engine 8 | . 1 1 . . . . 4 1 . 1 . . . . . . . . . . . Core 11 | . . 1 1 . . . . 1 . 4 . . . . 3 . . . . 1 . Reactor 27 | . . . . . . . . . 1 5 . . . 1 3 1 . 1 . 3 12 Propulsion 87 | . 3 2 7 4 . 1 3 13 5 9 . . . . 1 . . . . 11 28 Treads 51 | . 2 2 7 4 . 1 3 2 3 9 . . . . 1 . . . . 11 6 Leg 34 | . 1 . . . . . . 10 2 . . . . . . . . . . . 21 Wheel 2 | . . . . . . . . 1 . . . . . . . . . . . . 1 Hover . | . . . . . . . . . . . . . . . . . . . . . . Flight . | . . . . . . . . . . . . . . . . . . . . . . Utility 154 | . 2 3 11 2 . 3 5 13 7 17 2 5 4 4 20 . . 4 1 23 28 Device 86 | . 1 3 6 1 . . 3 6 4 12 1 4 1 1 16 . . 3 1 10 13 Storage 9 | . 1 . 1 . . 2 . 1 . . . . . . . . . . . 3 1 Processor 14 | . . . . . . . . . 1 2 . 1 . 1 2 . . 1 . 2 4 Hackware 4 | . . . 1 . . . . . . 1 1 . . . . . . . . 1 . Protection 39 | . . . 3 1 . 1 2 6 2 2 . . 3 2 2 . . . . 7 8 Artifact 2 | . . . . . . . . . . . . . . . . . . . . . 2 Weapon 131 | . 3 3 4 4 . 4 5 9 12 15 . 4 4 3 9 . 4 3 5 14 26 Energy Gun 42 | . 2 1 1 . . 3 2 1 3 5 . 2 2 . 1 . 2 2 1 5 9 Energy Cannon 15 | . 1 1 1 1 . . 1 2 . 1 . . . 1 2 . 2 . . 2 . Ballistic Gun 31 | . . . 1 . . . . 3 7 5 . . 1 . 3 . . . . 4 7 Ballistic Cannon 15 | . . 1 1 2 . . . 2 2 . . 1 1 1 . . . 1 . 1 2 Launcher 14 | . . . . 1 . . 1 . . 4 . 1 . 1 2 . . . 1 1 2 Special Weapon . | . . . . . . . . . . . . . . . . . . . . . . Impact Weapon 1 | . . . . . . . . . . . . . . . . . . . . . 1 Slashing Weapon 13 | . . . . . . 1 1 1 . . . . . . 1 . . . 3 1 5 Piercing Weapon . | . . . . . . . . . . . . . . . . . . . . . . Special Melee Weapon . | . . . . . . . . . . . . . . . . . . . . . . Unidentified Prototypes 37 | . 1 . 2 1 . 1 . 1 4 2 . . 2 . 2 . . 4 . 7 10 Corrupted Parts 11 | . . . . . . . 1 1 3 1 . . . 1 2 . 1 . 1 . . System Corruption 25 | . . . . . . . 1 1 6 2 . . . 1 7 . 5 . 2 . . Parts Lost 94 | . . 6 . . . . 3 14 10 8 . 2 . 2 5 . . . . 9 35 Power 11 | . . 2 . . . . 1 . . 1 . . . . . . . . . . 7 Propulsion 25 | . . 1 . . . . 1 6 4 1 . . . . . . . . . 1 11 Utility 39 | . . 1 . . . . . 4 4 5 . . . 2 3 . . . . 7 13 Weapon 19 | . . 2 . . . . 1 4 2 1 . 2 . . 2 . . . . 1 4 Highest Loss Streak 17 | . . 5 . . . . 3 6 10 2 . 1 . 2 2 . . . . 3 17 To Critical Strikes 1 | . . . . . . . . . 1 . . . . . . . . . . . . Average Slot Usage (%) 91 | . 90 98 94 99 100 97 92 93 91 93 94 94 78 85 84 78 78 72 68 79 91 Engine 1 | . 14 6 . . . . 4 4 . . . . . . . . . . . . . Core 4 | . . 7 6 7 7 7 5 7 7 2 11 11 11 7 1 . . . . . . Reactor 4 | . . . . . . . . . 4 7 . . . 3 8 10 10 6 5 9 12 Treads 17 | . 4 27 33 35 35 35 27 4 15 17 17 17 17 17 13 10 10 10 10 11 3 Leg 4 | . 23 . . . . . . 19 4 . . . . . . . . . . . 12 Device 18 | . 5 13 14 14 14 14 16 16 18 22 23 22 23 11 22 31 31 27 26 24 20 Storage 6 | . 14 14 7 7 7 6 5 5 6 5 5 5 5 5 5 5 5 5 5 3 4 Processor 4 | . . . . . . . . . 5 11 5 5 5 3 9 . . 3 5 6 18 Hackware 2 | . . . 3 7 7 7 5 5 1 . 5 5 5 2 . . . . . 1 . Protection 5 | . . . 6 7 7 5 5 5 6 5 5 5 4 14 6 5 5 5 5 5 4 Energy Gun 5 | . 15 3 . . . 9 10 2 . 8 5 6 1 5 5 5 5 8 . 5 4 Energy Cannon 2 | . 2 13 6 7 7 2 1 6 . . . . . 3 . . . . . . . Ballistic Gun 4 | . 9 . 6 7 7 7 3 2 8 7 11 5 . 1 3 5 5 3 . 2 2 Ballistic Cannon 3 | . . 10 7 6 7 2 . 5 10 . . 3 . 4 5 5 3 1 5 1 . Peak Build Rating 179 | 6 14 16 46 48 46 56 81 85 109 120 117 117 114 116 135 135 137 147 147 166 179 Average Rating 91 | 6 9 14 39 45 46 48 75 77 92 116 114 112 95 111 123 134 135 141 145 155 156 On Entrance 88 | 6 6 14 15 46 46 46 55 74 84 109 116 117 112 114 114 135 135 137 147 145 164 Naked Turns . | . . . . . . . . . . . . . . . . . . . . . . Heaviest Build 211 | 14 53 53 106 105 105 105 133 135 140 154 133 131 131 158 162 162 164 187 189 211 171 Greatest Support 160 | 20 40 40 100 100 100 102 112 110 120 137 137 137 137 137 160 160 160 160 160 160 130 Greatest Overweight (x) 13 | . 2 1 1 1 1 1 1 13 5 1 . . . 1 1 1 1 1 1 2 2 Average Overweight (x) . | . 1 1 . 1 1 . 1 1 1 . . . . 1 . 1 . . 1 1 1 Largest Inventory Capacity 35 | 8 20 20 25 25 25 35 25 25 25 25 25 25 25 25 25 25 25 25 25 25 25 Average Capacity 24 | 8 18 20 23 25 25 24 25 25 25 25 25 25 25 25 25 25 25 25 25 24 25 Most Carried 25 | 5 20 20 25 25 25 25 25 25 25 25 25 25 24 25 25 25 25 25 25 25 25 Average Carried 22 | 5 13 19 23 24 25 20 24 23 23 24 24 22 22 22 22 24 24 24 25 24 23 Final Capacity 25 | 8 20 20 25 25 25 25 25 25 25 25 25 25 25 25 25 25 25 25 25 25 25 Final Carried 25 | 4 20 20 25 25 25 25 25 25 25 25 25 22 24 23 25 25 25 25 25 24 24 Class Distribution -------------------- 46% | Scavenger-Tank 18% | Scavenger-Skirmisher 12% | Scavenger-Mutant 10% | Mutant 4% | Hacker-Mutant 3% | Hacker-Tank Dominant Class ---------------- Mutant | -10/Materials Mutant | -10/Subcaves Scavenger-Tank | -8/Materials Scavenger-Tank | -8/Storage Scavenger-Tank | -8/Recycling Scavenger-Tank | -8/Scraptown Hacker-Tank | -6/Factory Scavenger-Tank | -6/Extension Scavenger-Tank | -6/Cetus Scavenger-Skirmisher | -5/Factory Scavenger-Skirmisher | -5/Upper Caves Scavenger-Skirmisher | -5/Upper Caves Hacker-Mutant | -5/Zhirov Scavenger-Tank | -4/Proximity Caves Scavenger-Tank | -4/Factory Scavenger-Tank | -4/Upper Caves Scavenger-Tank | -4/Upper Caves Scavenger-Tank | -4/Warlord Scavenger-Mutant | -3/Proximity Caves Scavenger-Tank | -3/Research Scavenger-Mutant | -3/Quarantine Resources | -11 -10 -10 -8 -8 -8 -8 -6 -6 -6 -5 -5 -5 -5 -4 -4 -4 -4 -4 -3 -3 -3 ----------- Run | Yrd Mat Sub Mat Sto Rec Scr Fac Ext Cet Fac Upp Upp Zhi Pro Fac Upp Upp War Pro Res Qua Matter Collected 14985 | 148 329 262 559 340 . 294 576 818 622 2249 598 281 180 517 1262 300 101 776 110 1751 2912 Remotely . | . . . . . . . . . . . . . . . . . . . . . . Salvage Created 23444 | . 611 604 955 990 . . 1109 1552 413 4476 178 394 180 658 1558 109 300 409 150 3628 5170 Parts 1049 | . 29 44 56 44 . . 61 66 24 200 7 16 2 18 67 2 11 16 15 160 211 Haulers Intercepted 6 | . 2 . . 3 . . . . . . . . . . . . . . . 1 . Recyclers Shooed 5 | . 1 . . 1 . . 2 . . 1 . . . . . . . . . . . Parts Field Recycled . | . . . . . . . . . . . . . . . . . . . . . . Retrieved Matter . | . . . . . . . . . . . . . . . . . . . . . . Parts Self-Destructed 82 | . . 27 . . . . . . . . 6 16 . 5 . 7 9 . 12 . . Prevented 16 | . . . . . . . . . . . 1 . . 8 . 4 3 . . . . Kills | -11 -10 -10 -8 -8 -8 -8 -6 -6 -6 -5 -5 -5 -5 -4 -4 -4 -4 -4 -3 -3 -3 ------- Run | Yrd Mat Sub Mat Sto Rec Scr Fac Ext Cet Fac Upp Upp Zhi Pro Fac Upp Upp War Pro Res Qua Combat Hostiles Destroyed 383 | . 9 18 22 13 . . 17 25 5 68 3 10 . 17 28 2 7 6 7 53 73 Melee 26 | . . . . . . . . 3 . . . . . . . . . . . 2 21 Guns 204 | . 9 6 5 3 . . 16 3 3 65 3 7 . 2 14 2 6 . . 36 24 Cannons 100 | . . 12 17 10 . . 1 15 1 . . . . 5 9 . 1 6 2 7 14 AOE 43 | . . . . . . . . 3 . 3 . 3 . 8 5 . . . 5 4 12 Classes Destroyed 22 | . 3 3 4 2 . . 3 1 1 1 . . . . . . . 2 . . 2 Worker 5 | . . . . 2 . . . . . 3 . . . . . . . . . . . Builder 6 | . . . . . . . 1 1 . 1 . . . . 1 . . . . 2 . Tunneler 1 | . . . . . . . . . . 1 . . . . . . . . . . . Hauler 6 | . 2 . . 3 . . . . . . . . . . . . . . . 1 . Recycler 12 | . 1 . 1 3 . . 1 . . 2 . . . . 1 . . . . 1 2 Mechanic 5 | . . . . 1 . . . . . . . . . . 1 . . . . 2 1 Operator 5 | . . . 2 1 . . . . . 2 . . . . . . . . . . . Turret 2 | . . 2 . . . . . . . . . . . . . . . . . . . Watcher 7 | . . . . . . . . . 1 1 . . . . 1 . . . . 2 2 Swarmer 59 | . . 4 7 3 . . 5 . . 4 . 5 . 5 6 . 4 . 5 11 . Grunt 140 | . 9 2 6 6 . . 5 9 . 35 1 4 . 7 9 2 1 1 . 11 32 Brawler 10 | . . . . . . . 1 1 . 1 . . . 4 . . . . . . 3 Duelist 10 | . . . 1 . . . 1 . . . . . . . 1 . . . . . 7 Protector 1 | . . . . . . . . . . . . . . . . . . . . . 1 Researcher 3 | . . . . . . . . . . . . . . . . . . . . . 3 Sentry 39 | . . . 7 4 . . 2 7 . 8 . 1 . 1 . . 2 . . 5 2 Specialist 5 | . . . . . . . . . . . . . . . . . . 2 . . 3 Hunter 27 | . . . 1 . . . 1 4 . 4 . . . . 4 . . . 2 4 7 Programmer 69 | . . . . . . . 2 1 . 15 2 . . . 8 . . 1 . 22 18 Behemoth 2 | . . . . . . . . 1 . 1 . . . . . . . . . . . Cetus Guard 5 | . . . . . . . . . 5 . . . . . . . . . . . . Executioner 2 | . . . . . . . . . . . . . . . . . . 2 . . . Subdweller 12 | . . 12 . . . . . . . . . . . . . . . . . . . Thug 2 | . . . . . . . . 2 . . . . . . . . . . . . . Butcher 1 | . . . . . . . . 1 . . . . . . . . . . . . . Best Kill Streak 13 | . 3 6 4 7 . . 6 7 4 6 2 5 . 13 6 1 3 5 5 6 11 Combat Bots Only 13 | . 2 4 4 3 . . 6 7 3 6 2 5 . 13 5 1 3 5 5 6 11 Max Kills in Single Turn 4 | . 1 1 1 2 . . 1 3 1 2 1 3 . 4 3 1 2 1 3 4 3 Gunslinging 1 | . . . . . . . . . . 1 . 1 . . . . 1 . . 1 . Exploded 4 | . . . . . . . . 3 . 2 . 3 . 4 3 . . . 3 4 3 Melee 1 | . . . . . . . . 1 . . . . . . . . . . . 1 1 Uniques/NPCs Destroyed 1 | . . . . . . . . . 1 . . . . . . . . . . . . Revision 17 (-6/Cetus) Combat | -11 -10 -10 -8 -8 -8 -8 -6 -6 -6 -5 -5 -5 -5 -4 -4 -4 -4 -4 -3 -3 -3 -------- Run | Yrd Mat Sub Mat Sto Rec Scr Fac Ext Cet Fac Upp Upp Zhi Pro Fac Upp Upp War Pro Res Qua Hostile Shots Fired 3274 | . 35 145 80 34 . . 207 341 136 386 25 33 . 54 200 10 56 49 33 500 950 Missed 994 | . 11 44 27 10 . . 54 118 55 110 5 12 . 12 69 8 26 17 6 134 276 Deflected 18 | . . . . . . . . . . . . . . . . . . . . . 18 Damage Taken 28600 | . 246 1142 436 191 . . 1510 2594 1640 3918 314 295 . 779 1626 21 368 394 313 3965 8848 Core 2700 | . 48 163 67 15 . . 81 231 209 274 32 42 . 44 93 . 12 28 47 256 1058 Absorbed by Shields 6802 | . . . 115 72 . . 443 354 91 556 . . . . 303 7 111 111 98 2374 2167 Reduced by Siege Mode 135 | . . . . . . . . . . 6 . . . . . . . 70 . 37 22 Redirected to Core 4 | . . . . . . . . . . . . . . . . . . . . . 4 Redirected to Shielding 67 | . . . . . . . . . . . . . . . . . . . . 67 . Ignored by Resistances 10021 | . 77 331 164 74 . . 551 847 468 1229 88 80 . 223 668 9 139 141 114 1749 3069 Regen/Repaired (Parts) 2634 | . . . 145 143 . . 40 132 . 809 . . . . 62 . . 144 . 655 504 Core Remaining (%) 63 | 100 . 15 . . . 85 . . 38 . . . . 60 . . . . 84 . . Volleys Fired 986 | . 30 78 40 27 . . 64 78 34 168 9 11 15 23 76 4 14 14 10 138 153 Largest 3 | . 2 2 3 3 . . 3 3 3 3 3 3 1 3 3 3 3 2 1 3 3 Hottest 240 | . 60 133 135 135 . . 193 194 240 151 94 140 81 219 219 168 199 240 90 223 240 Shots Fired 2351 | . 60 144 112 81 . . 163 176 98 482 24 25 15 56 206 20 41 23 11 345 269 Gun 1705 | . 60 29 32 27 . . 154 57 67 477 24 22 15 16 124 11 28 10 . 300 252 Cannon 615 | . . 115 80 54 . . 8 119 31 . . . . 36 76 9 13 13 8 44 9 Launcher 31 | . . . . . . . 1 . . 5 . 3 . 4 6 . . . 3 1 8 Special . | . . . . . . . . . . . . . . . . . . . . . . Kinetic 1121 | . 30 38 72 54 . . 43 66 79 243 17 10 . 18 138 15 23 13 8 129 125 Thermal 1007 | . . 106 40 27 . . 59 68 4 234 7 12 15 16 59 5 14 10 . 196 135 Explosive 30 | . . . . . . . . . . 5 . 3 . 4 6 . . . 3 1 8 Electromagnetic 193 | . 30 . . . . . 61 42 15 . . . . 18 3 . 4 . . 19 1 Robot Hit Streak 48 | . 32 35 25 23 . . 26 32 48 38 7 10 14 41 17 17 23 34 35 39 30 Robot Miss Streak 10 | . 1 2 2 2 . . 1 10 2 3 2 1 1 2 3 . 3 . 1 4 4 Penetration Max 2 | . . . 1 1 . . 1 1 1 1 . 1 . 1 1 . . . . 1 2 Secondary Targets 36 | . . . . . . . 2 . 1 16 . 3 . . . . 1 . . 9 4 Max Gunslinging Chain 2 | . . . . . . . 1 . 1 1 . 1 . . . . 1 . . 2 1 Autonomous 45 | . . . . . . . . . . . . . . . . . . . . . 45 Shots Hit Robots 1833 | . 52 85 74 49 . . 126 139 76 359 17 17 14 41 139 11 28 22 7 296 281 Core Hits 881 | . 24 33 37 30 . . 55 97 31 152 5 13 3 35 53 5 13 7 15 114 159 Critical Kills 42 | . . . . . . . . 3 1 13 2 3 . . 6 . . . . 4 10 Critical Parts Destroyed 66 | . 1 . . . . . . 4 7 24 1 . . . 1 . . . . 6 22 Critical Strikes 175 | . 1 2 1 2 . . 3 10 12 51 4 4 1 2 23 . 3 3 . 12 41 Burn 25 | . . 1 . . . . 2 . . 13 1 1 1 1 4 . . . . . 1 Meltdown 1 | . . . . . . . . 1 . . . . . . . . . . . . . Destroy 112 | . 1 . . . . . . 6 12 38 3 3 . . 7 . . . . 10 32 Blast 24 | . . 1 1 2 . . . . . . . . . 1 11 . 3 3 . 2 . Corrupt 3 | . . . . . . . 1 1 . . . . . . 1 . . . . . . Sever 4 | . . . . . . . . . . . . . . . . . . . . . 4 Melee Attacks 141 | . . . . . . . . 20 . . . . . . . . . . . 13 108 Kinetic 1 | . . . . . . . . . . . . . . . . . . . . . 1 Impact . | . . . . . . . . . . . . . . . . . . . . . . Slashing 140 | . . . . . . . . 20 . . . . . . . . . . . 13 107 Piercing . | . . . . . . . . . . . . . . . . . . . . . . Sneak Attacks 10 | . . . . . . . . 1 . . . . . . . . . . . 1 8 Combat Hostiles 4 | . . . . . . . . . . . . . . . . . . . . . 4 Follow-up Attacks 2 | . . . . . . . . 1 . . . . . . . . . . . . 1 Damage Inflicted 65619 | . 748 1626 1617 1209 . . 2065 4748 1753 10644 533 775 402 2594 4691 254 747 1332 879 10952 18050 Guns 34035 | . 653 324 461 434 . . 1865 1202 1315 10064 533 483 402 314 2222 182 457 266 . 7530 5328 Cannons 17041 | . . 1302 1156 744 . . 80 2326 438 . . . . 929 1828 72 290 1066 259 2353 4198 Explosions 7753 | . 85 . . . . . 120 456 . 568 . 292 . 1351 641 . . . 620 497 3123 Melee 6688 | . . . . . . . . 717 . . . . . . . . . . . 570 5401 Ramming 102 | . 10 . . 31 . . . 47 . 12 . . . . . . . . . 2 . Kinetic 24187 | . 299 421 893 785 . . 695 1330 1503 5394 386 292 . 479 2779 157 381 1066 259 4047 3021 Thermal 20558 | . 85 1205 724 393 . . 814 1821 65 4670 147 191 402 314 1197 97 270 266 . 5319 2578 Explosive 7106 | . . . . . . . 74 . . 568 . 292 . 1351 641 . . . 620 437 3123 Electromagnetic 3078 | . 354 . . . . . 482 833 185 . . . . 450 74 . 96 . . 577 27 Impact . | . . . . . . . . . . . . . . . . . . . . . . Slashing 6637 | . . . . . . . . 717 . . . . . . . . . . . 570 5350 Piercing . | . . . . . . . . . . . . . . . . . . . . . . Phasic 3951 | . . . . . . . . . . . . . . . . . . . . . 3951 Highest Corruption 67 | . . . . . . . 2 3 9 19 21 21 21 25 14 14 19 19 2 21 67 Average Corruption 14 | . . . . . . . 1 2 6 10 19 21 21 23 8 14 14 19 2 11 40 Corruption Purged . | . . . . . . . . . . . . . . . . . . . . . . Corruption Blocked . | . . . . . . . . . . . . . . . . . . . . . . Effects 848 | . . . . . . . 14 67 21 191 22 21 19 54 59 50 23 2 5 92 208 Message Errors 202 | . . . . . . . 4 17 5 40 5 6 6 15 10 12 3 . 1 27 51 Matter Fused 189 | . . . . . . . 4 14 6 44 6 3 3 12 11 14 9 2 . 26 35 Heat Flow Errors 91 | . . . . . . . 2 9 2 27 1 1 5 2 6 5 1 . 1 7 22 Energy Discharges 92 | . . . . . . . 2 7 1 22 2 7 1 8 8 2 2 . 1 10 19 Parts Rejected 12 | . . . . . . . . 1 . 4 . . . 1 . 1 . . . 2 3 Parts Fused 8 | . . . . . . . . . 1 1 1 1 . 1 . . 1 . . 1 1 Data Loss (minor) 94 | . . . . . . . 1 12 1 19 1 . 2 5 13 6 3 . 1 3 27 Data Loss (major) 35 | . . . . . . . . 4 1 10 1 1 2 4 3 . 1 . . 2 6 Misfires 36 | . . . . . . . 1 1 2 5 . . . 3 5 8 . . 1 4 6 Alerts 19 | . . . . . . . . 1 1 4 1 1 . . 1 2 2 . . 1 5 Misdirections 9 | . . . . . . . . . . 4 1 . . . . . . . . 1 3 Weapon Failures 61 | . . . . . . . . 1 1 11 3 1 . 3 2 . 1 . . 8 30 Overload Shots 5 | . . . . . . . . . 2 . . . . . . . . 1 . . 2 Overflow Damage 1885 | . . . 8 16 . . 44 64 . 7 . . . 96 293 . 9 109 52 223 964 Projectiles 822 | . . . 8 16 . . . 3 . . . . . . 157 . 9 109 . 216 304 Explosions 460 | . . . . . . . 44 . . 7 . . . 96 136 . . . 52 7 118 Melee 603 | . . . . . . . . 61 . . . . . . . . . . . . 542 Knockbacks 40 | . . 1 1 1 . . . 1 . 1 . . . 2 13 1 2 5 1 8 3 Impact 3 | . . . . 1 . . . 1 . 1 . . . . . . . . . . . Kinetic 36 | . . 1 1 . . . . . . . . . . 2 13 1 2 4 1 8 3 Secondary 1 | . . . . . . . . . . . . . . . . . . 1 . . . Self-Inflicted Damage 166 | . . . . . . . 45 . . 73 . . . . . . . . . . 48 Shots 5 | . . . . . . . 1 . . 2 . . . . . . . . . . 2 Rammed 6 | . . . 1 3 . . . . . 1 . . . . . . . . . 1 . Targets Rammed 13 | . 2 . 1 4 . . . 4 . 1 . . . . . . . . . 1 . Kicked 6 | . 2 . . . . . . 4 . . . . . . . . . . . . . Crushed 1 | . . . . 1 . . . . . . . . . . . . . . . . . Highest Temperature 530 | . 45 171 120 96 . . 530 406 98 88 . 64 63 327 123 8 12 . 26 192 169 Average Temperature 92 | . 28 55 37 28 . . 139 147 36 39 . 34 46 127 27 8 12 . 26 36 75 Received Heat Transfer 6187 | . 183 602 246 91 . . 638 752 270 1491 18 90 . 238 184 15 48 18 . 321 982 Effects 21 | . . . . . . . 14 6 . . . . . 1 . . . . . . . Shutdowns 9 | . . . . . . . 5 4 . . . . . . . . . . . . . Energy Bleed 3 | . . . . . . . 1 1 . . . . . 1 . . . . . . . Interference 6 | . . . . . . . 5 1 . . . . . . . . . . . . . Matter Decay 1 | . . . . . . . 1 . . . . . . . . . . . . . . Short Circuit 1 | . . . . . . . 1 . . . . . . . . . . . . . . Damage (minor) 1 | . . . . . . . 1 . . . . . . . . . . . . . . Siege Activations 6 | . . . . . . . . . . 2 . . . . . . . 1 . 2 1 Total Turns 100 | . . . . . . . . . . 24 . . . . . . . 30 . 35 11 Longest Duration 30 | . . . . . . . . . . 14 . . . . . . . 30 . 21 11 Robots Corrupted 4 | . . . . . . . . . . . . . . 1 . . . . . 3 . Combat Hostiles 4 | . . . . . . . . . . . . . . 1 . . . . . 3 . Parts Fried 15 | . . . . . . . . 4 1 . . . . . . . . . . 10 . Impact Corruptions 1 | . . . . . . . . 1 . . . . . . . . . . . . . Robots Melted 2 | . . . . . . . . 1 . . . . . . . . . . . 1 . Combat Hostiles 2 | . . . . . . . . 1 . . . . . . . . . . . 1 . Parts Melted 64 | . . 1 3 . . . 9 2 3 16 2 1 . . 4 . . . . 23 . Heat Transferred 32417 | . 50 2442 1258 666 . . 1789 2550 150 9085 350 422 592 555 1998 148 407 333 . 6253 3369 Parts Sabotaged 5 | . . . . . . . . . . . . . . . . . . . . . 5 Parts Stolen . | . . . . . . . . . . . . . . . . . . . . . . Parts Stripped 22 | . . . . . . . . . . . . . . . . . . . . . 22 Power Chain Reactions 4 | . 2 . . . . . 1 1 . . . . . . . . . . . . . Alert | -11 -10 -10 -8 -8 -8 -8 -6 -6 -6 -5 -5 -5 -5 -4 -4 -4 -4 -4 -3 -3 -3 ------- Run | Yrd Mat Sub Mat Sto Rec Scr Fac Ext Cet Fac Upp Upp Zhi Pro Fac Upp Upp War Pro Res Qua Peak Influence 801 | . 214 . 244 270 56 . 216 218 84 579 . . . . 482 . . . . 638 801 Initial 312 | . . . . 40 11 . . 42 . 40 . . . . . . . . . . 312 Average 161 | . 62 . 100 124 11 . 52 51 36 181 . . . . 146 . . . . 198 486 Maximum Alert Level 3 | . 1 . 1 1 . . 1 1 . 2 . . . . 2 . . . . 2 3 Low Security (%) 71 | 100 97 . 85 94 100 . 96 98 100 65 . . . . 77 . . . . 53 1 Level 1 14 | . 2 . 14 5 . . 3 1 . 20 . . . . 17 . . . . 31 27 Level 2 13 | . . . . . . . . . . 14 . . . . 4 . . . . 14 66 Level 3 . | . . . . . . . . . . . . . . . . . . . . . 4 Level 4 . | . . . . . . . . . . . . . . . . . . . . . . Level 5 . | . . . . . . . . . . . . . . . . . . . . . . High Security . | . . . . . . . . . . . . . . . . . . . . . . Max Security . | . . . . . . . . . . . . . . . . . . . . . . Squads Dispatched 75 | . 1 . 3 1 . . 11 3 . 16 . . . 1 8 . 1 . . 9 21 Investigation 16 | . 1 . 1 . . . 4 . . 6 . . . . 1 . . . . . 3 Extermination 26 | . . . . . . . 3 . . 7 . . . . 3 . . . . 7 6 Reinforcement 18 | . . . 2 1 . . 1 3 . 2 . . . . . . . . . 2 7 Assault 9 | . . . . . . . . . . 1 . . . 1 1 . 1 . . . 5 Garrison 6 | . . . . . . . 3 . . . . . . . 3 . . . . . . Intercept . | . . . . . . . . . . . . . . . . . . . . . . Searches Triggered . | . . . . . . . . . . . . . . . . . . . . . . Construction Impeded 6 | . . . . . . . . 1 . 1 . . . . . . . . . 1 3 Haulers Reinforced 1 | . . . . . . . . . . . . . . . . . . . . 1 . Active Scanning Responses . | . . . . . . . . . . . . . . . . . . . . . . Cargo Convoy Interrupts . | . . . . . . . . . . . . . . . . . . . . . . Stealth | -11 -10 -10 -8 -8 -8 -8 -6 -6 -6 -5 -5 -5 -5 -4 -4 -4 -4 -4 -3 -3 -3 --------- Run | Yrd Mat Sub Mat Sto Rec Scr Fac Ext Cet Fac Upp Upp Zhi Pro Fac Upp Upp War Pro Res Qua Distress Signals 27 | . 1 . 4 3 . . . 3 2 6 . . . 1 1 . . 1 . 2 3 Communications Jammed 1 | . . . . . . . . . . . . . . . 1 . . . . . . Distress Signals 1 | . . . . . . . . . . . . . . . 1 . . . . . . Times Spotted 588 | . 23 24 42 25 1 . 29 36 9 91 3 12 . 18 35 3 18 39 6 76 98 Peak Tracking Total 12 | . 2 6 5 4 1 . 5 6 5 8 2 5 . 12 5 1 10 12 5 8 11 Tactical Retreats 38 | . 3 2 3 . . . . 4 . 2 . 3 . 2 2 . 4 1 . 7 5 Traps | -11 -10 -10 -8 -8 -8 -8 -6 -6 -6 -5 -5 -5 -5 -4 -4 -4 -4 -4 -3 -3 -3 ------- Run | Yrd Mat Sub Mat Sto Rec Scr Fac Ext Cet Fac Upp Upp Zhi Pro Fac Upp Upp War Pro Res Qua Traps Triggered 12 | . . . 1 1 . . 2 1 . 2 . . . . . . . . . 2 3 Indirectly 2 | . . . . . . . 2 . . . . . . . . . . . . . . Trap Hack Attempts . | . . . . . . . . . . . . . . . . . . . . . . Triggered . | . . . . . . . . . . . . . . . . . . . . . . Disarmed . | . . . . . . . . . . . . . . . . . . . . . . Reprogrammed . | . . . . . . . . . . . . . . . . . . . . . . Reused . | . . . . . . . . . . . . . . . . . . . . . . Traps Extracted . | . . . . . . . . . . . . . . . . . . . . . . Installed . | . . . . . . . . . . . . . . . . . . . . . . Triggered 12 | . . . . . . . . . . . . 1 . . 2 2 3 4 . . . Machines | -11 -10 -10 -8 -8 -8 -8 -6 -6 -6 -5 -5 -5 -5 -4 -4 -4 -4 -4 -3 -3 -3 ---------- Run | Yrd Mat Sub Mat Sto Rec Scr Fac Ext Cet Fac Upp Upp Zhi Pro Fac Upp Upp War Pro Res Qua Machines Disabled 56 | . 1 2 2 . . . 8 6 2 12 . . . . 7 . . 1 . 1 14 Max in Single Turn 3 | . 1 1 1 . . . 2 2 1 1 . . . . 3 . . 1 . 1 1 Garrison Access 5 | . . . . . . . 1 . . 1 . . . . 2 . . . . . 1 Energy Cycler 2 | . . . . . . . . 2 . . . . . . . . . . . . . Machines Repaired . | . . . . . . . . . . . . . . . . . . . . . . Machines Dismantled . | . . . . . . . . . . . . . . . . . . . . . . Machines Sabotaged . | . . . . . . . . . . . . . . . . . . . . . . Overloaded Fab Kills . | . . . . . . . . . . . . . . . . . . . . . . Hacking | -11 -10 -10 -8 -8 -8 -8 -6 -6 -6 -5 -5 -5 -5 -4 -4 -4 -4 -4 -3 -3 -3 --------- Run | Yrd Mat Sub Mat Sto Rec Scr Fac Ext Cet Fac Upp Upp Zhi Pro Fac Upp Upp War Pro Res Qua Machines Accessed 84 | . 5 . 9 9 5 2 9 3 1 17 . . 2 . 7 . . . . 8 7 Terminals 52 | . 4 . 7 8 5 . 5 3 1 9 . . . . 1 . . . . 4 5 Fabricators 4 | . . . . . . . . . . 2 . . . . 2 . . . . . . Repair Stations 9 | . . . 1 1 . . . . . 3 . . . . 1 . . . . 2 1 Recycling Units 4 | . 1 . . . . . 2 . . . . . . . 1 . . . . . . Scanalyzers 7 | . . . 1 . . . 1 . . 2 . . . . 1 . . . . 2 . Garrison Access 4 | . . . . . . . 1 . . 1 . . . . 1 . . . . . 1 Total Hacks 227 | . 17 . 33 31 14 3 25 5 1 43 . . 5 . 13 . . . . 19 18 Successful 144 | . 9 . 26 23 12 3 20 2 1 26 . . 5 . 6 . . . . 6 5 Failed 82 | . 8 . 7 8 1 . 5 3 . 17 . . . . 7 . . . . 13 13 Catastrophic 9 | . . . . . . . . . . 3 . . . . . . . . . 3 3 Database Lockouts 1 | . . . . . 1 . . . . . . . . . . . . . . . . Manual 118 | . 8 . 23 18 14 . 13 1 . 21 . . . . 2 . . . . 7 11 Terminals 144 | . 14 . 26 27 14 . 16 5 1 18 . . . . 2 . . . . 8 13 Fabricators 9 | . . . . . . . . . . 5 . . . . 4 . . . . . . Repair Stations 31 | . . . 4 4 . . . . . 9 . . . . 3 . . . . 8 3 Recycling Units 6 | . 3 . . . . . 2 . . . . . . . 1 . . . . . . Scanalyzers 22 | . . . 3 . . . 6 . . 8 . . . . 2 . . . . 3 . Garrison Access 7 | . . . . . . . 1 . . 3 . . . . 1 . . . . . 2 Terminal Hacks 51 | . 2 . 10 12 4 3 5 2 1 4 . . 5 . . . . . . 1 2 Record 3 | . . . . . . 1 . . . . . . 1 . . . . . . . 1 Part Schematic 2 | . . . 1 1 . . . . . . . . . . . . . . . . . Robot Analysis 10 | . . . 3 . 3 . . . . . . . 4 . . . . . . . . Prototype ID Bank 7 | . 1 . 1 3 . . 2 . . . . . . . . . . . . . . Open Door 7 | . . . . 3 . 1 . 2 1 . . . . . . . . . . . . Level Access Points 1 | . . . . . . . . . . . . . . . . . . . . . 1 Branch Access Points 4 | . 1 . 1 1 . . . . . 1 . . . . . . . . . . . Emergency Access Points 1 | . . . 1 . . . . . . . . . . . . . . . . . . Terminal Index 6 | . . . . 1 1 . 1 . . 2 . . . . . . . . . 1 . Repair Station Index 1 | . . . . 1 . . . . . . . . . . . . . . . . . Unreport Threat 4 | . . . 2 . . . 2 . . . . . . . . . . . . . . Locate Traps 1 | . . . . . . . . . . 1 . . . . . . . . . . . Dispatch Records 1 | . . . . 1 . . . . . . . . . . . . . . . . . Hauler Manifests 1 | . . . . 1 . . . . . . . . . . . . . . . . . Registered Components 1 | . . . 1 . . . . . . . . . . . . . . . . . . Derelict Proto ID Bank 1 | . . . . . . 1 . . . . . . . . . . . . . . . Fabricator Hacks 5 | . . . . . . . . . . 3 . . . . 2 . . . . . . Network Status 2 | . . . . . . . . . . 1 . . . . 1 . . . . . . Load Schematic 1 | . . . . . . . . . . 1 . . . . . . . . . . . Build 2 | . . . . . . . . . . 1 . . . . 1 . . . . . . Repair Station Hacks 22 | . . . 4 4 . . . . . 6 . . . . 1 . . . . 5 2 Scan Component 13 | . . . 2 2 . . . . . 4 . . . . 1 . . . . 3 1 Repair 9 | . . . 2 2 . . . . . 2 . . . . . . . . . 2 1 Recycling Unit Hacks 1 | . 1 . . . . . . . . . . . . . . . . . . . . Retrieve Components 1 | . 1 . . . . . . . . . . . . . . . . . . . . Scanalyzer 14 | . . . 3 . . . 6 . . 4 . . . . 1 . . . . . . Insert Component 7 | . . . 1 . . . 3 . . 2 . . . . 1 . . . . . . Analyze 7 | . . . 2 . . . 3 . . 2 . . . . . . . . . . . Garrison Access Hacks 2 | . . . . . . . 1 . . . . . . . 1 . . . . . . Seal Access 2 | . . . . . . . 1 . . . . . . . 1 . . . . . . Unauthorized Hacks 49 | . 6 . 9 7 8 . 8 . . 9 . . . . 1 . . . . . 1 Terminals 40 | . 5 . 9 7 8 . 6 . . 4 . . . . . . . . . . 1 Botnet 15 | . 1 . 4 2 3 . 1 . . 3 . . . . . . . . . . 1 Skim 25 | . 4 . 5 5 5 . 5 . . 1 . . . . . . . . . . . Fabricators 2 | . . . . . . . . . . 2 . . . . . . . . . . . Report 1 | . . . . . . . . . . 1 . . . . . . . . . . . Liberate 1 | . . . . . . . . . . 1 . . . . . . . . . . . Repair Stations 3 | . . . . . . . 2 . . . . . . . 1 . . . . . . Recycling Units 1 | . 1 . . . . . . . . . . . . . . . . . . . . Tunnel 1 | . 1 . . . . . . . . . . . . . . . . . . . . Scrapoids 3 | . . . . . . . 2 . . . . . . . 1 . . . . . . Scanalyzers 2 | . . . . . . . . . . 2 . . . . . . . . . . . Extract 2 | . . . . . . . . . . 2 . . . . . . . . . . . Garrison Access 1 | . . . . . . . . . . 1 . . . . . . . . . . . Jam 1 | . . . . . . . . . . 1 . . . . . . . . . . . Data Cores Recovered 2 | . . . . . . . . . . 2 . . . . . . . . . . . Used . | . . . . . . . . . . . . . . . . . . . . . . Hacking Detections 63 | . 5 . 8 4 2 . 6 2 1 15 . . . . 5 . . . . 8 7 Full Trace Events 7 | . . . 1 . . . 1 . . 3 . . . . . . . . . . 2 Feedback Events 2 | . . . . . . . 1 . . 1 . . . . . . . . . . . Corruption 2 | . . . . . . . 1 . . 1 . . . . . . . . . . . Feedback Blocked . | . . . . . . . . . . . . . . . . . . . . . . Robot Schematics Acquired . | . . . . . . . . . . . . . . . . . . . . . . Robots Built . | . . . . . . . . . . . . . . . . . . . . . . Authchips . | . . . . . . . . . . . . . . . . . . . . . . Time . | . . . . . . . . . . . . . . . . . . . . . . Total Robot Build Rating . | . . . . . . . . . . . . . . . . . . . . . . Part Schematics Acquired 25 | . . . 2 1 . . 2 . . 10 . . . . . . . . . . 10 Parts Built 1 | . . . . . . . . . . . . . . . 1 . . . . . . Authchips . | . . . . . . . . . . . . . . . . . . . . . . Time 208 | . . . . . . . . . . 139 . . . . 69 . . . . . . Total Part Build Rating 9 | . . . . . . . . . . . . . . . 9 . . . . . . Parts Repaired 9 | . . . 2 2 . . . . . 2 . . . . . . . . . 2 1 Time 447 | . . . 83 58 . . . . . 98 . . . . . . . . . 100 108 Parts Recycled . | . . . . . . . . . . . . . . . . . . . . . . Recycled Matter . | . . . . . . . . . . . . . . . . . . . . . . Retrieved Matter . | . . . . . . . . . . . . . . . . . . . . . . Retrieved Components 10 | . 10 . . . . . . . . . . . . . . . . . . . . Parts Scanalyzed 5 | . . . 1 . . . 2 . . 2 . . . . . . . . . . . Part Schematics Acquired 5 | . . . 1 . . . 2 . . 2 . . . . . . . . . . . Parts Damaged . | . . . . . . . . . . . . . . . . . . . . . . Bothacking | -11 -10 -10 -8 -8 -8 -8 -6 -6 -6 -5 -5 -5 -5 -4 -4 -4 -4 -4 -3 -3 -3 ------------ Run | Yrd Mat Sub Mat Sto Rec Scr Fac Ext Cet Fac Upp Upp Zhi Pro Fac Upp Upp War Pro Res Qua Used RIF Installer . | . . . . . . . . . . . . . . . . . . . . . . Robots Hacked . | . . . . . . . . . . . . . . . . . . . . . . Non-combat . | . . . . . . . . . . . . . . . . . . . . . . Combat . | . . . . . . . . . . . . . . . . . . . . . . Robot Hacks Applied . | . . . . . . . . . . . . . . . . . . . . . . Relay Couplers Released 6 | . . . . . . . 1 . . . . . . . 3 . . . . . 2 Machine Destruction 3 | . . . . . . . 1 . . . . . . . . . . . . . 2 Programmers 3 | . . . . . . . . . . . . . . . 3 . . . . . . Fabnet Peak Effective % . | . . . . . . . . . . . . . . . . . . . . . . Robots Rewired 16 | . . . . . . . . 15 . . . . . 1 . . . . . . . Allies Hacked 2 | . . . . . . . . . . . . . . . 2 . . . . . . Hacks Repelled . | . . . . . . . . . . . . . . . . . . . . . . Allies | -11 -10 -10 -8 -8 -8 -8 -6 -6 -6 -5 -5 -5 -5 -4 -4 -4 -4 -4 -3 -3 -3 -------- Run | Yrd Mat Sub Mat Sto Rec Scr Fac Ext Cet Fac Upp Upp Zhi Pro Fac Upp Upp War Pro Res Qua Total Allies 38 | . . . . 3 . . 10 19 . . . . . 1 5 . . . . . . Largest Group 9 | . . . . 3 3 3 5 9 7 . . . . 1 5 . . . . . . Highest-Rated Group 250 | . . . . 93 93 93 143 250 199 . . . . 30 241 . . . . . . Highest-Rated Ally 50 | . . . . 31 31 31 31 39 39 . . . . 30 50 . . . . . . Total Orders 5 | . . . . . . . . . 5 . . . . . . . . . . . . STAY 1 | . . . . . . . . . 1 . . . . . . . . . . . . ROAM 3 | . . . . . . . . . 3 . . . . . . . . . . . . FOLLOW 1 | . . . . . . . . . 1 . . . . . . . . . . . . Ally Attacks 313 | . . . . 7 6 . 92 124 18 . . . . 2 64 . . . . . . Total Damage 4910 | . . . . 126 103 . 1282 1610 357 . . . . 86 1346 . . . . . . Kills 43 | . . . . 5 2 . 12 15 4 . . . . . 5 . . . . . . Allies Corrupted 3 | . . . . . . . . 1 . . . . . . 2 . . . . . . Allies Melted 1 | . . . . . . . . . . . . . . . . . . 1 . . . Intel | -11 -10 -10 -8 -8 -8 -8 -6 -6 -6 -5 -5 -5 -5 -4 -4 -4 -4 -4 -3 -3 -3 ------- Run | Yrd Mat Sub Mat Sto Rec Scr Fac Ext Cet Fac Upp Upp Zhi Pro Fac Upp Upp War Pro Res Qua Robot Analysis Total 10 | . . . 3 . 3 . . . . . . . 4 . . . . . . . . Derelict Logs Recovered 6 | . . 2 . . . 1 . . . . . 1 . 1 . . 1 . . . . Drone Launches . | . . . . . . . . . . . . . . . . . . . . . . Drone Recoveries . | . . . . . . . . . . . . . . . . . . . . . . Exploration | -11 -10 -10 -8 -8 -8 -8 -6 -6 -6 -5 -5 -5 -5 -4 -4 -4 -4 -4 -3 -3 -3 ------------- Run | Yrd Mat Sub Mat Sto Rec Scr Fac Ext Cet Fac Upp Upp Zhi Pro Fac Upp Upp War Pro Res Qua Turns Passed 38463 | 1 1998 2267 1878 1286 1353 4076 1892 3838 715 5227 390 454 394 1084 2256 1171 492 798 442 3079 3372 Spaces Moved 13774 | 1 605 818 685 448 351 1693 648 1583 209 1657 217 251 214 354 911 472 195 319 169 944 1030 Core . | . . . . . . . . . . . . . . . . . . . . . . Treads 11122 | . 120 818 685 448 351 1693 648 178 185 1657 217 251 214 354 911 472 195 319 169 944 293 Legs 2562 | 1 485 . . . . . . 1315 24 . . . . . . . . . . . 737 Wheels 90 | . . . . . . . . 90 . . . . . . . . . . . . . Hover . | . . . . . . . . . . . . . . . . . . . . . . Flight . | . . . . . . . . . . . . . . . . . . . . . . Fastest Speed 120 | 120 120 240 160 244 244 157 241 190 160 163 163 163 163 243 160 245 160 160 245 237 157 Average Speed 226 | 120 224 247 222 244 244 235 242 204 237 239 163 163 163 243 208 245 225 204 245 246 210 Slowest Speed 640 | 120 320 250 250 244 244 244 245 640 470 245 163 163 163 243 245 245 245 245 245 340 330 Overloaded Moves . | . . . . . . . . . . . . . . . . . . . . . . Propulsion Burnouts . | . . . . . . . . . . . . . . . . . . . . . . Robots Hopped . | . . . . . . . . . . . . . . . . . . . . . . Cave-ins Triggered . | . . . . . . . . . . . . . . . . . . . . . . Exploration Rate (%) 50 | 2 73 51 56 53 54 88 17 98 67 52 37 48 62 51 22 64 37 38 45 27 66 Regions Visited 21 Branch Regions 15 Pre-discovered Areas 8 | . 1 . . . 2 1 3 . . . . . . 1 . . . . . . . Known Exits Taken 13 | . . 1 1 1 1 . 1 . 1 1 1 1 1 1 . . 1 . . 1 . Unknown Exits Taken 8 | 1 1 . . . . 1 . 1 . . . . . . 1 1 . 1 1 . . Scrap Searched 11 | . . . . . . 4 . . . . 1 2 . 1 . . 1 . 2 . . Spaces Dug 29 | . . . . 2 . . . 1 . 9 . . . . 17 . . . . . . Terrain Destroyed 602 | . 8 1 11 6 . . 41 26 4 145 7 53 . 36 113 10 5 . 36 25 75 Melee . | . . . . . . . . . . . . . . . . . . . . . . Projectile 198 | . . 1 11 6 . . . 14 4 72 7 3 . 5 33 10 5 . 3 8 16 AOE 404 | . 8 . . . . . 41 12 . 73 . 50 . 31 80 . . . 33 17 59 Terrain Rammed . | . . . . . . . . . . . . . . . . . . . . . . Walls Destroyed . | . . . . . . . . . . . . . . . . . . . . . . Machines Disabled . | . . . . . . . . . . . . . . . . . . . . . . Actions | -11 -10 -10 -8 -8 -8 -8 -6 -6 -6 -5 -5 -5 -5 -4 -4 -4 -4 -4 -3 -3 -3 --------- Run | Yrd Mat Sub Mat Sto Rec Scr Fac Ext Cet Fac Upp Upp Zhi Pro Fac Upp Upp War Pro Res Qua Total 19027 | 2 1186 919 957 580 849 1801 845 2003 354 2575 235 275 248 534 1122 479 220 449 186 1412 1796 Wait 3032 | . 505 4 176 78 499 35 104 123 55 635 2 . . 146 69 1 . 91 . 180 329 Move 13753 | . 604 817 684 447 350 1692 647 1582 208 1656 216 250 213 353 910 471 194 318 168 943 1030 Hop . | . . . . . . . . . . . . . . . . . . . . . . Pick Up 240 | . 22 6 14 3 . 42 6 19 15 29 2 . 3 . 3 1 2 5 1 45 22 Fast Attach 180 | . 6 1 12 3 . 1 . 14 10 16 1 4 7 3 19 1 4 3 . 29 46 Attach 101 | . . 6 3 . . 4 6 9 8 13 1 3 2 2 8 . . . . 14 22 Detach 26 | . . . . . . . . . . 1 . . 1 1 9 . . 2 . 3 9 Swap 140 | . 3 3 8 7 . 3 11 14 7 22 . 2 . 3 9 . . 5 6 9 28 Drop 297 | 2 14 4 19 11 . 24 7 27 17 34 4 5 7 2 19 1 6 11 1 37 45 Fire 986 | . 30 78 40 27 . . 64 78 34 168 9 11 15 23 76 4 14 14 10 138 153 Melee 139 | . . . . . . . . 19 . . . . . . . . . . . 13 107 Ram . | . . . . . . . . . . . . . . . . . . . . . . Kick 6 | . 2 . . . . . . 4 . . . . . . . . . . . . . Crush 7 | . . . 1 4 . . . . . 1 . . . . . . . . . 1 . Escape Stasis 7 | . . . . . . . . 2 . . . . . . . . . . . . 5 Rewire 113 | . . . . . . . . 112 . . . . . 1 . . . . . . . Trap . | . . . . . . . . . . . . . . . . . . . . . . Miscellaneous . | . . . . . . . . . . . . . . . . . . . . . . Route ------- -11/Scrapyard -10/Materials (discovered 4 exits: [*Mat] / *Min x2 / [*Sub]) -10/Subcaves (discovered 2 exits: *Mat / *Rec) -8/Materials (discovered 4 exits: [*Fac x2] / *Sto x2) -8/Storage -8/Recycling (discovered 2 exits: *Fac / *Scr) -8/Scraptown (discovered 2 exits: *Fac x2) -6/Factory (discovered 2 exits: Fac / *Ext) -6/Extension (discovered 3 exits: *Fac x2 / *Cet) -6/Cetus (discovered 2 exits: *Fac / [*Arc]) -5/Factory (discovered 3 exits: *Fac / *Upp x2) -5/Upper Caves -5/Upper Caves (discovered 2 exits: *Fac / *Zhi) -5/Zhirov -4/Proximity Caves -4/Factory (discovered 2 exits: *Res / [*Upp]) -4/Upper Caves -4/Upper Caves -4/Warlord -3/Proximity Caves -3/Research (discovered 2 exits: [*Arm] / *Qua) -3/Quarantine (discovered 1 exit: *Res) History --------- Turn | Location | Event 2 | -11/Scrapyard | Discovered new exit (range 0) 2 | -11/Scrapyard | Entered Materials 73 | -10/Materials | Identified exit to Mines 312 | -10/Materials | Build established: Mutant 666 | -10/Materials | Discovered new exit (range 5) 1103 | -10/Materials | Discovered new exit (range 3) 2000 | -10/Materials | Entered Subcaves 2074 | -10/Subcaves | Learned Materials terminal intel 2136 | -10/Subcaves | Identified exit to Materials 2184 | -10/Subcaves | Discovered new exit (range 13) 2368 | -10/Subcaves | Shifting Twisted Machinery released Mak. Hacking Suite 2377 | -10/Subcaves | Shifting Twisted Machinery released Sub. Beam Cannon 2519 | -10/Subcaves | A Subdweller sparked back to life 2519 | -10/Subcaves | A Subdweller sparked back to life 2519 | -10/Subcaves | A Subdweller sparked back to life 2571 | -10/Subcaves | Core integrity fell below 50% 2607 | -10/Subcaves | Lost 5 parts (1p1n1u2w) 2609 | -10/Subcaves | Found Prototype Power Core 2817 | -10/Subcaves | Shifting Twisted Machinery released Shrapnel Trap 2834 | -10/Subcaves | Shifting Twisted Machinery released Battle Rifle 3923 | -10/Subcaves | Ambushed by Subdwellers from Twisted Machinery 4100 | -10/Subcaves | Core integrity fell below 20% 4161 | -10/Subcaves | Shifting Twisted Machinery released Sub. Monowheel 4179 | -10/Subcaves | Shifting Twisted Machinery released Battle Rifle 4267 | -10/Subcaves | Entered Materials 4267 | -8/Materials | Evolved 4 slots: Propulsion x2, Utility x2 4268 | -8/Materials | Loaded intel: 12 terminal locations 4339 | -8/Materials | Identified Meta Core 4340 | -8/Materials | Attached Meta Core, gained temporary slots: Propulsion, Utility, Weapon 4574 | -8/Materials | Repaired Spk. Treads 4629 | -8/Materials | Repaired Adv. Beam Cannon 4760 | -8/Materials | Discovered new exit (range 4) 4803 | -8/Materials | Discovered new exit (range 15) 5065 | -8/Materials | Build established: Scavenger-Tank 5398 | -8/Materials | Identified exit to Storage 5656 | -8/Materials | Discovered new exit (range 11) 5854 | -8/Materials | Learned Factory repair station intel 6145 | -8/Materials | Entered Storage 6741 | -8/Storage | Identified exit to Recycling 6788 | -8/Storage | Repaired Battle Cannon 6816 | -8/Storage | Repaired Lgt. Armor Plating 6978 | -8/Storage | Allied Derelicts emerged from ambush trap array 7424 | -8/Storage | Used back door to open Recycling access 7431 | -8/Storage | Entered Recycling 7431 | -8/Recycling | Accompanied by 3 allies 7955 | -8/Recycling | Discovered new exit (range 4) 8254 | -8/Recycling | Identified exit to Scraptown 8307 | -8/Recycling | Learned location of 1 exit from Recycling 8385 | -8/Recycling | Learned Factory scanalyzer intel 8410 | -8/Recycling | Learned location of Lower Caves (-7) 8484 | -8/Recycling | Learned Factory emergency access door positions 8529 | -8/Recycling | Learned 2 Lower Caves zone layouts 8583 | -8/Recycling | Learned Factory security intel 8716 | -8/Recycling | Scanned before Scraplab entrance 8753 | -8/Recycling | Entered Scraplab 8784 | -8/Recycling | Entered Scraptown 8784 | -8/Scraptown | Accompanied by 3 allies 9328 | -8/Scraptown | Heard Great Nut preacher, LISTEN AND RECITE! 9433 | -8/Scraptown | Scanned Subdweller tech in exchange for log data 9440 | -8/Scraptown | Learned 12 Factory zone layouts 9567 | -8/Scraptown | Visited UFD Registry 9567 | -8/Scraptown | Registered with UFD as "Zeronade" 9763 | -8/Scraptown | Delivered Scrap Shield to a Scientist 9834 | -8/Scraptown | Visited Science Guys 9912 | -8/Scraptown | Visited DA-N13 Charitable Foundation 9934 | -8/Scraptown | Found DCF Scrap (30 items) 9997 | -8/Scraptown | Visited Chapter 10 10733 | -8/Scraptown | Discovered new exit (range 5) 11003 | -8/Scraptown | Visited Shadow of the Wyrm 11027 | -8/Scraptown | Visited TADAMA 11099 | -8/Scraptown | Visited Spacefarers 11226 | -8/Scraptown | Visited Comm Corps 11242 | -8/Scraptown | Visited Red Mages 11293 | -8/Scraptown | Found Relay Coupler [Proto] 11304 | -8/Scraptown | Found Relay Coupler [Proto] 11383 | -8/Scraptown | Visited Symbiants 12001 | -8/Scraptown | Visited Junk Cannon Lab 12044 | -8/Scraptown | Found Prototype Special Weapon 12091 | -8/Scraptown | Visited Scrap Suit Storage 12148 | -8/Scraptown | Found Scrap Suit 12151 | -8/Scraptown | Found Scrap Suit 12348 | -8/Scraptown | Visited Sword Containment 12437 | -8/Scraptown | Visited Derelict Rescue Squad 12500 | -8/Scraptown | Visited Junk Repository 12586 | -8/Scraptown | Visited Supply Room 12724 | -8/Scraptown | Visited Junk Repository 12837 | -8/Scraptown | Discovered new exit (range 5) 12860 | -8/Scraptown | Entered Factory 12860 | -6/Factory | Accompanied by 3 allies 12860 | -6/Factory | Evolved 4 slots: Power x1, Utility x2, Weapon x1 12861 | -6/Factory | Identified exit to Extension 12862 | -6/Factory | Identified exit to Factory 12865 | -6/Factory | Loaded intel: 6 repair station locations 12866 | -6/Factory | Loaded intel: 4 scanalyzer locations 13193 | -6/Factory | Build established: Hacker-Tank 13271 | -6/Factory | Lost 3 allies 13553 | -6/Factory | Build established: Scavenger-Tank 13721 | -6/Factory | Garrison activated, responded to threat 13730 | -6/Factory | Scrapoids reinforcements arrived? 13811 | -6/Factory | Lost 4 allies 13844 | -6/Factory | Identified Junk Cannon 14008 | -6/Factory | Lost 3 parts (1p1n1w) 14303 | -6/Factory | Build established: Hacker-Tank 14315 | -6/Factory | Learned location of Proximity Caves (-6) 14375 | -6/Factory | Learned location of 2 exits from Upper Caves 14461 | -6/Factory | Learned location of 2 exits from Archives 14490 | -6/Factory | Learned Factory scanalyzer intel 14509 | -6/Factory | Learned 2 Hub_04(d) zone layouts 14520 | -6/Factory | Learned Extension emergency access door positions 14540 | -6/Factory | Learned 4 Upper Caves zone layouts 14571 | -6/Factory | Learned Extension garrison access intel 14593 | -6/Factory | Scrapoid reinforcements arrived 14611 | -6/Factory | Learned Extension emergency access door positions 14752 | -6/Factory | Entered Extension 14752 | -6/Extension | Accompanied by 5 allies 14786 | -6/Extension | Disrupted transfer network 14986 | -6/Extension | Found Scrap Suit 15012 | -6/Extension | Lost 3 allies 15265 | -6/Extension | Build established: Hacker-Mutant 15337 | -6/Extension | Lost 6 parts (3n2u1w) 15345 | -6/Extension | Destroyed 7 combat bots 15831 | -6/Extension | Rescued a captive Derelict 15878 | -6/Extension | Rescued a captive Derelict 15884 | -6/Extension | Rescued a captive Derelict 16058 | -6/Extension | Energy Cycler disabled 16058 | -6/Extension | Rescued a captive Derelict 16058 | -6/Extension | Rescued a captive Derelict 16061 | -6/Extension | Rescued a captive Derelict 16066 | -6/Extension | Rescued a captive Derelict 16294 | -6/Extension | Build established: Scavenger-Tank 16730 | -6/Extension | Lost 3 allies 16765 | -6/Extension | Spotted B-75 Beast 16791 | -6/Extension | Destroyed B-75 Beast 16806 | -6/Extension | Discovered exit to Factory (range 15) 16808 | -6/Extension | Spotted B-75 Beast 16828 | -6/Extension | Allies destroyed B-75 Beast 17560 | -6/Extension | Discovered exit to Factory (range 16) 17560 | -6/Extension | Discovered new exit (range 16) 18590 | -6/Extension | Entered Cetus 18590 | -6/Cetus | Accompanied by 7 allies 18631 | -6/Cetus | Spotted Cetus Guard 18631 | -6/Cetus | Spotted Cetus Guard 18633 | -6/Cetus | Spotted Cetus Guard 18633 | -6/Cetus | Spotted Cetus Guard 18662 | -6/Cetus | Destroyed Cetus Guard 18675 | -6/Cetus | Destroyed Cetus Guard 18689 | -6/Cetus | Core integrity fell below 50% 18695 | -6/Cetus | Destroyed Cetus Guard 18722 | -6/Cetus | Destroyed Cetus Guard 18748 | -6/Cetus | Lost 10 parts (4n4u2w) 19006 | -6/Cetus | Cetus Manufacturing Module disabled 19085 | -6/Cetus | Discovered new exit (range 16) 19161 | -6/Cetus | Spotted Cetus Guard 19162 | -6/Cetus | Spotted Cetus Guard 19163 | -6/Cetus | Allies destroyed Cetus Guard 19165 | -6/Cetus | Spotted Cetus Guard 19165 | -6/Cetus | Spotted Cetus Guard 19173 | -6/Cetus | Allies destroyed Cetus Guard 19181 | -6/Cetus | Destroyed Cetus Guard 19183 | -6/Cetus | Allies destroyed Cetus Guard 19193 | -6/Cetus | Discovered exit to Factory (range 16) 19208 | -6/Cetus | Met Revision 17 19208 | -6/Cetus | Murdered Revision 17 19305 | -6/Cetus | Entered Factory 19305 | -5/Factory | Evolved 2 slots: Utility x2 19306 | -5/Factory | Loaded intel: 4 scanalyzer locations 19416 | -5/Factory | Discovered new exit (range 9) 19618 | -5/Factory | Build established: Scavenger-Skirmisher 20665 | -5/Factory | Repaired Imp. Shield Generator 22255 | -5/Factory | System corruption reached 10% 22515 | -5/Factory | Discovered new exit (range 15) 22579 | -5/Factory | Identified exit to Factory 23986 | -5/Factory | Repaired Centrium Heavy Treads 24113 | -5/Factory | Identified exit to Upper Caves 24193 | -5/Factory | Spotted B-75 Beast 24231 | -5/Factory | Destroyed B-75 Beast 24405 | -5/Factory | First assault squad dispatched 24532 | -5/Factory | Entered Upper Caves 24533 | -5/Upper Caves | Encountered a Warlord checkpoint 24533 | -5/Upper Caves | Identified exit to Upper Caves 24534 | -5/Upper Caves | UFD Scientist delivered a prototype 24557 | -5/Upper Caves | Found Prototype Protection 24922 | -5/Upper Caves | Entered another Upper Caves area 24924 | -5/Upper Caves | Attracted the attention of an 0b10 checkpoint 25117 | -5/Upper Caves | Encountered a Warlord checkpoint 25359 | -5/Upper Caves | Discovered new exit (range 8) 25374 | -5/Upper Caves | Identified exit to Zhirov 25376 | -5/Upper Caves | Entered Zhirov 25376 | -5/Zhirov | Discovered new exit (range 3) 25433 | -5/Zhirov | Met Zhirov 25492 | -5/Zhirov | Zhirov requested help retrieving the SGEMP Prototype 25519 | -5/Zhirov | Found Alien Artifact 25519 | -5/Zhirov | Identified Integrated Dissipator 25519 | -5/Zhirov | Installed Integrated Dissipator, increased core heat dissipation (+20) 25551 | -5/Zhirov | Found Alien Artifact 25561 | -5/Zhirov | Identified Enh. Scrap Shield 25701 | -5/Zhirov | Build established: Hacker-Mutant 25769 | -5/Zhirov | Identified exit to Proximity Caves 25770 | -5/Zhirov | Entered Proximity Caves 26037 | -4/Proximity Caves | Attracted the attention of an 0b10 outpost 26098 | -4/Proximity Caves | Destroyed 13 combat bots 26506 | -4/Proximity Caves | Build established: Scavenger-Tank 26583 | -4/Proximity Caves | Learned location of Armory (-3) 26820 | -4/Proximity Caves | Discovered exit to Factory (range 10) 26854 | -4/Proximity Caves | Entered Factory 26854 | -4/Factory | Evolved 2 slots: Utility x2 27084 | -4/Factory | Identified Transdimensional Reconstructor 27157 | -4/Factory | Scrapoid reinforcements arrived 27614 | -4/Factory | Found Corrupted Scrap Suit 27664 | -4/Factory | Discovered new exit (range 8) 27761 | -4/Factory | Found Scrap Suit 28200 | -4/Factory | Fabricated Adv. Heavy Siege Treads (x1) 28479 | -4/Factory | System corruption reached 10% 28547 | -4/Factory | Discovered new exit (range 18) 28742 | -4/Factory | Garrison activated, responded to threat 29110 | -4/Factory | Entered Upper Caves 30263 | -4/Upper Caves | Discovered new exit (range 7) 30281 | -4/Upper Caves | Entered another Upper Caves area 30282 | -4/Upper Caves | Identified exit to Warlord 30283 | -4/Upper Caves | Attracted the attention of an 0b10 checkpoint 30465 | -4/Upper Caves | Learned Research security intel 30671 | -4/Upper Caves | Attracted the attention of an 0b10 outpost 30773 | -4/Upper Caves | Entered Warlord 30833 | -4/Warlord | System corruption cleaned by Quarantine Array 30989 | -4/Warlord | Rebuked by Warlord 31014 | -4/Warlord | Warlord's base attacked by MAIN.C 31021 | -4/Warlord | Found Prototype Reactor 31021 | -4/Warlord | Identified Vortex Chain Reactor 31028 | -4/Warlord | Found Prototype Processor 31028 | -4/Warlord | Identified Exp. Targeting Computer 31045 | -4/Warlord | Found Prototype Processor 31053 | -4/Warlord | Found Prototype Hackware 31291 | -4/Warlord | Found Prototype Ballistic Cannon 31291 | -4/Warlord | Identified Hvy. Autocannon 31316 | -4/Warlord | Lost 3 allies 31360 | -4/Warlord | Spotted Executioner 31363 | -4/Warlord | Spotted Executioner 31364 | -4/Warlord | Warlord forces counterattacked 31364 | -4/Warlord | Destroyed Executioner 31375 | -4/Warlord | Destroyed Executioner 31403 | -4/Warlord | Lost 3 allies 31427 | -4/Warlord | Spotted Executioner 31432 | -4/Warlord | Spotted Striker 31474 | -4/Warlord | Lost 10 allies 31514 | -4/Warlord | Spotted Striker 31534 | -4/Warlord | Discovered new exit (range 12) 31571 | -4/Warlord | Entered Proximity Caves 31572 | -3/Proximity Caves | Lost 9 allies 31869 | -3/Proximity Caves | Build established: Scavenger-Mutant 31974 | -3/Proximity Caves | Discovered new exit (range 11) 32013 | -3/Proximity Caves | Entered Research 32013 | -3/Research | Evolved 2 slots: Power x1, Utility x1 32014 | -3/Research | Identified Ghost Barrier 32320 | -3/Research | Build established: Hacker-Mutant 32460 | -3/Research | Repaired Adv. Heavy Siege Treads 32487 | -3/Research | Repaired Huge Storage Unit 32965 | -3/Research | Lost 3 parts (1n1u1w) 33258 | -3/Research | Build established: Hacker-Tank 33291 | -3/Research | Identified Exp. Target Analyzer 33420 | -3/Research | Found Fusion Bomb Launcher 33589 | -3/Research | System corruption reached 10% 33656 | -3/Research | Build established: Scavenger-Gunner 34020 | -3/Research | Build established: Scavenger-Tank 34868 | -3/Research | Discovered new exit (range 11) 34892 | -3/Research | Discovered new exit (range 6) 35080 | -3/Research | Identified exit to Quarantine 35092 | -3/Research | Entered Quarantine 35125 | -3/Quarantine | Found Alien Slashing Weapon 35197 | -3/Quarantine | Found Alien Artifact 35197 | -3/Quarantine | Identified Subatomic Replicator 35242 | -3/Quarantine | Forged Prototype Slashing Weapon 35493 | -3/Quarantine | Build established: Scavenger-Mutant 35863 | -3/Quarantine | System corruption reached 30% 35945 | -3/Quarantine | Lost 7 parts (2n4u1w) 35954 | -3/Quarantine | Identified Sigix Broadsword 36216 | -3/Quarantine | Core integrity fell below 50% 36448 | -3/Quarantine | Identified exit to Research 36576 | -3/Quarantine | Lost 3 parts (1p2n) 37139 | -3/Quarantine | Found Prototype Device 37139 | -3/Quarantine | Identified Exp. Thermal Shield 37270 | -3/Quarantine | Found Alien Artifact 37270 | -3/Quarantine | Identified Phase Redirector 37661 | -3/Quarantine | Found Sigix Corpse 37671 | -3/Quarantine | Found Sigix Corpse 37748 | -3/Quarantine | Scanned by Researcher 37785 | -3/Quarantine | Found Alien Reactor 37797 | -3/Quarantine | Identified Matter Drive 37949 | -3/Quarantine | Repaired Helical Railgun 38092 | -3/Quarantine | First assault squad dispatched 38188 | -3/Quarantine | Destroyed 11 combat bots 38236 | -3/Quarantine | Found Alien Artifact 38236 | -3/Quarantine | Identified Phase Armor 38388 | -3/Quarantine | Core integrity fell below 20% 38424 | -3/Quarantine | Found Alien Impact Weapon 38424 | -3/Quarantine | Identified Core Stripper 38464 | -3/Quarantine | Destroyed by G-67 Veteran with Plasma Rifle Last Messages --------------- Quantum Companion releases a shadow of itself that zips off towards G-67 Veteran. 38445_ G-67 Veteran destroyed. 38447_ Adv. Melee Analysis Suite destroyed. 38447_ Exp. Target Analyzer destroyed. 38447_ System corrupted by crushing effect (+2). Quantum Companion releases a shadow of itself that zips off towards B-74 Champion. 38451_ Adv. Signal Interpreter destroyed. 38451_ Exp. Coolant Injector destroyed. 38451_ System corrupted by crushing effect (+1). 38451_ Knocked back. 38454_ System corrupted: Heat flow error (+198). 38455_ M-13 Machinist repairs Hvy. Armor Plating. 38457_ Flexi-carbon Leg destroyed. Quantum Companion releases a shadow of itself that zips off towards B-74 Champion. Quantum Companion releases a shadow of itself that zips off towards G-73 Enforcer. 38460_ G-73 Enforcer destroyed. Map ----- +----------------------------------------------------+ | ??? ! ????????????????????????????????????????? | | ??#"" " #??????????????????????????????????????? | | ??#"" "" #??????????????????????????????????????? | | ??#"" "" #??????????????????????????????????????? | | ??#S "" #??????????????????????????????????????? | | ??#"" " #??????????????????????????????????????? | | ??#"" "" #??????????????????????????????????????? | | ??#"" "" +??????????????????????????????????????? | | ??# "" #??? ??????????????????????????????????? | | ###[ " #??? ??????????????????????????????????? | | # #??? ??????????????????????????????????? | | % "###+####??? #?????????????????????????????????? | | = ## #???? ?????????????????????????????????? | | #???? #?????????????????????????????????? | | #???? #?????????????????????????????????? | | #???# #?????????????????????????????????? | | #### ! #???# #?????????????????????????????????? | | ???## ##???# ###########???????????????????????? | | ????# #????# # *% #???????????????????????? | | ????# #????# # !*%!"" #???????????????????????? | | ????# ######[#* !i![" #???????????????????????? | | ????# *%%= m"g" " #???????????????????????? | | ????# =!=+%[ "=""" #???????????????????????? | | ????# %==#=! " """ #??????####?????????????? | | ????# ###+#/##! g=%! ### #?????????????? | | ????# # # =gb @w < #?????????????? | | ????# # ##+########## #?????????????? | | ????+ # "## #????????????? #?????????????? | | ????# # !"%## #??????????????????????????????? | | ????# # "/ #??????????????????????????????? | | ????# # ####??????????????????????????????? | | ????# ########?????????????????????????????????? | | ????# ?????????????????????????????????????????? | | ????# ?????????????????????????????????????????? | | ????# ?????????????????????????????????????????? | | ????# ?????????????????????????????????????????? | | ???? ?????????????????????????????????????????? | | ????? ?????????????????????????????????????????? | | ?????????????????????????????????????????????????? | | ?????????????????????????????????????????????????? | | ?????????????????????????????????????????????????? | | ?????????????????????????????????????????????????? | | ?????????????????????????????????????????????????? | | ?????????????????????????????????????????????????? | | ?????????????????????????????????????????????????? | | ?????????????????????????????????????????????????? | | | | | | | | | +----------------------------------------------------+ Best States ------------- Heat Dissipation 180 Coolant Potential 120 Energy Generation 73 Energy Capacity 925 Matter Stores 300 Matter Capacity 300 Sight Range 22 Robot Scan Range 18 Terrain Scan Density 10 Jamming Range 14 Additional Mass Support 6 Base Temperature (-) 200 Armor Coverage 1650 Resistance: KI 50 Resistance: TH 50 Resistance: EX 20 Resistance: EM 20 Resistance: I 20 Resistance: S 20 Resistance: P 20 Weapon Shielding 66 Point Defense Rating 240 Phase Shifting 10 Evasion (%) 55 Targeting Accuracy 12 Melee Accuracy 16 Target Analysis 14 Recoil Reduction 5 Matter Filtering 50 Particle Charging 25 Salvage Targeting 4 Offensive Hacking 21 Defensive Hacking 20 Item Schematics ----------------- Imp. Shield Generator | -8/Materials | Scanalyzed Hacking Suite | -8/Materials | Hacked Hrd. Medium Armor Plating | -8/Storage | Hacked Imp. Light Armor Plating | -6/Factory | Scanalyzed CPS Tube | -6/Factory | Scanalyzed Adv. Melee Analysis Suite | -5/Factory | Extracted Nuclear Pulse Array | -5/Factory | Extracted ECM Suite | -5/Factory | Extracted Hvy. Flail | -5/Factory | Extracted Adv. Plasma Cannon | -5/Factory | Extracted Wave Gun | -5/Factory | Scanalyzed Quantum Reactor | -5/Factory | Scanalyzed Com. Matter Pod | -5/Factory | Extracted Thermic Laser | -5/Factory | Extracted Com. Battery | -5/Factory | Extracted Mni. Fusion Reactor | -3/Quarantine | Archive Electron Diverter | -3/Quarantine | Archive Prc. Energy Filter | -3/Quarantine | Archive Tesla Bomb Launcher | -3/Quarantine | Archive Enh. Coil Gun | -3/Quarantine | Archive Exp. Target Analyzer | -3/Quarantine | Archive Com. Mass Driver | -3/Quarantine | Archive Cld. Phase Cannon | -3/Quarantine | Archive Lrn. Phase Cannon | -3/Quarantine | Archive Imp. Diametric Drive | -3/Quarantine | Archive Robot Schematics ------------------ None Fabricated ------------ Adv. Heavy Siege Treads | x1 | -4/Factory | Preloaded Alien Tech Used ----------------- Integrated Dissipator Subatomic Replicator Sigix Broadsword Phase Redirector Matter Drive Phase Armor Core Stripper Achievements -------------- None Challenges ------------ None Game ------ Seed WardroneMachineMace Manual? 0 Play Time 04:24:32 Cumulative 334.2 hours Start 2024.08.31 @ 16:11:38 End 2024.08.31 @ 22:09:58 Sessions 1 Manual Loads 0 Difficulty Adventurer Special Mode None Game No. 255 Rogue 63 Adventurer 166 Explorer 26 Win Type - Total 1 Types 1/0/0/0/0/0/0/0/0 Lore% 77 Gallery% 75 Achievement% 68 Wizard Run 0 Options --------- Layout 2 ASCII 0 Keyboard 0 Movement Mouse Keybinds 0 Fullscreen 0 Font 18/CogNarrow Map View 64x51 Zoom Use 0% Tactical HUD 1 Map Filters NONE Filters BRIGHTNESS(115)|SATURATION(100)|LOW_CONTRAST(0,16,30) Steam 1 RUN: 1dbbce28-a90b-4211-a224-30c8094feb33